bitfinex/quotes_BTCUSD_20251120
["timestamp","ask_amount","ask_price","bid_price","bid_amount"]
[1763658934583,0.00412,87189.0,87170.0,0.77927136]
[1763658934784,0.00012591,87190.0,87179.0,0.77927136]
[1763658934988,0.00012591,87190.0,87180.0,0.40092714]
[1763658935217,0.00012591,87190.0,87180.0,0.47219714]
[1763658935407,0.00012591,87190.0,87178.0,0.01133667]
[1763658935634,0.00012591,87190.0,87160.0,0.01133667]
[1763658935892,0.00012591,87190.0,87160.0,0.79060803]
[1763658936347,0.00012591,87190.0,87160.0,0.01133667]
[1763658936554,0.00012591,87190.0,87162.0,0.10934622]
[1763658936828,0.00012591,87190.0,87160.0,0.01959734]
[1763658937036,0.00412,87189.0,87161.0,0.07127]
[1763658937238,0.00012591,87190.0,87189.0,0.03504]
[1763658937396,0.00012591,87190.0,87189.0,0.04637667]
[1763658937597,0.00012591,87190.0,87189.0,0.01133667]
[1763658937799,0.00012591,87190.0,87189.0,0.08260667]
[1763658938003,0.00012591,87190.0,87189.0,0.09086734]
[1763658938226,0.01798906,87221.0,87189.0,0.09086734]
[1763658938429,0.00041962,87217.0,87191.0,0.323]
[1763658938638,0.00041962,87217.0,87189.0,0.01959734]
[1763658938876,0.00041962,87217.0,87189.0,0.01133667]
[1763658938877,0.06919,87216.0,87189.0,0.01133667]
[1763658939322,0.00041962,87217.0,87191.0,0.323]
[1763658939538,0.00041962,87217.0,87201.0,0.323]
[1763658939780,0.00041962,87217.0,87201.0,0.33433667]
[1763658939991,0.00041962,87217.0,87202.0,0.07127]
[1763658940434,0.00041962,87217.0,87216.0,0.02061]
[1763658940583,0.00041962,87217.0,87216.0,0.10321667]
[1763658940784,0.00041962,87217.0,87216.0,0.44747296]
[1763658941029,0.0004,87250.0,87248.0,0.03504]
[1763658941202,0.00052588,87250.0,87248.0,0.04637667]
[1763658941414,0.00042626,87250.0,87248.0,0.01133667]
[1763658941625,3.06919,87249.0,87217.0,0.01133667]
[1763658941824,3.06919,87249.0,87180.0,0.65243488]
[1763658941825,0.60139229,87246.0,87206.0,0.01133667]
[1763658942027,0.04915542,87234.0,87199.0,0.01133667]
[1763658942259,0.05210249,87245.0,87191.0,0.01133667]
[1763658942260,0.04915542,87224.0,87191.0,0.01133667]
[1763658942461,0.04915542,87233.0,87191.0,0.01133667]
[1763658942674,0.03721554,87232.0,87195.0,0.10934622]
[1763658942840,0.323,87230.0,87191.0,0.01133667]
[1763658943042,0.04915542,87227.0,87191.0,0.01133667]
[1763658943428,0.04915542,87218.0,87182.0,0.01133667]
[1763658943625,0.00412,87217.0,87182.0,0.01133667]
[1763658944152,0.00412,87217.0,87150.0,0.66243487]
[1763658944153,0.22934547,87205.0,87158.0,0.01133667]
[1763658944339,0.01,87196.0,87149.0,0.01133667]
[1763658944513,0.05210249,87199.0,87152.0,0.01376904]
[1763658944714,0.06919,87199.0,87155.0,0.10934622]
[1763658944960,0.06919,87199.0,87151.0,0.00041962]
[1763658945203,0.37510249,87194.0,87151.0,0.00041962]
[1763658945348,0.06919,87199.0,87153.0,0.323]
[1763658945349,0.00412,87193.0,87153.0,0.323]
[1763658945551,0.00412,87193.0,87171.0,0.10934622]
[1763658945752,0.23925486,87240.0,87171.0,0.10934622]
[1763658945753,0.06919,87232.0,87173.0,0.06357393]
[1763658946014,0.13908183,87283.0,87206.0,0.10934622]
[1763658946015,0.00412,87231.0,87206.0,0.10934622]
[1763658946189,0.00412,87231.0,87207.0,0.01093462]
[1763658946491,0.03625,87276.0,87207.0,0.40520462]
[1763658946492,0.06919,87259.0,87207.0,0.40520462]
[1763658946692,0.00412,87238.0,87213.0,0.10934622]
[1763658946895,0.00412,87238.0,87214.0,0.323]
[1763658947039,0.00412,87248.0,87215.0,0.07127]
[1763658947239,0.00012586,87238.0,87216.0,0.37336162]
[1763658947494,0.00012586,87238.0,87237.0,0.10934622]
[1763658947707,0.00012586,87238.0,87234.0,0.01133667]
[1763658948044,0.00012586,87238.0,87235.0,0.07127]
[1763658948252,0.00012586,87238.0,87235.0,0.08879]
[1763658948451,0.00012586,87238.0,87236.0,0.01001267]
[1763658948787,0.00012586,87238.0,87235.0,0.41179]
[1763658948994,0.00012586,87238.0,87236.0,0.39427]
[1763658949387,0.00012586,87238.0,87235.0,0.01752]
[1763658949388,0.00012586,87238.0,87237.0,0.44637249]
[1763658949844,0.00012586,87238.0,87237.0,0.39427]
[1763658950277,0.00412,87280.0,87237.0,0.39427]
[1763658950464,0.0004,87310.0,87235.0,0.01752]
[1763658950465,0.06919,87300.0,87249.0,0.43234622]
[1763658950674,0.00412,87287.0,87249.0,0.44368289]
[1763658950866,0.00412,87287.0,87249.0,0.51495289]
[1763658951071,0.00412,87293.0,87250.0,0.38510248]
[1763658951321,0.00424584,87293.0,87252.0,0.37510249]
[1763658951538,0.07343584,87293.0,87252.0,0.323]
[1763658951821,0.00424584,87293.0,87253.0,0.07127]
[1763658952727,0.07343584,87293.0,87251.0,0.09750817]
[1763658952927,0.00734358,87292.0,87252.0,0.13116533]
[1763658953139,0.07343584,87293.0,87252.0,0.02181911]
[1763658953353,0.00065864,87253.0,87249.0,0.01133667]
[1763658953473,0.00408,87278.0,87252.0,0.10934622]
[1763658953676,0.00408,87278.0,87253.0,0.10934622]
[1763658953940,0.00408,87278.0,87249.0,0.01133667]
[1763658954157,0.00408,87278.0,87217.0,0.01133667]
[1763658954158,0.01,87272.0,87217.0,0.01133667]
[1763658954355,0.37510249,87269.0,87210.0,0.10934622]
[1763658954610,0.323,87267.0,87224.0,0.10934622]
[1763658954828,0.06919,87268.0,87224.0,0.10934622]
[1763658955048,0.06919,87268.0,87238.0,0.10934622]
[1763658955256,0.00012579,87269.0,87238.0,0.10934622]
[1763658955257,0.00012579,87269.0,87239.0,0.01093462]
[1763658955476,0.00012579,87269.0,87266.0,0.10934622]
[1763658955685,0.00012579,87269.0,87253.0,0.01133667]
[1763658955889,0.00012579,87269.0,87240.0,0.65243488]
[1763658955890,0.00012579,87269.0,87239.0,0.09354129]
[1763658956096,0.00012579,87269.0,87239.0,0.01093462]
[1763658956392,0.00012579,87269.0,87230.0,0.01133667]
[1763658956393,0.06931579,87269.0,87230.0,0.01133667]
[1763658956575,0.06931579,87269.0,87210.0,0.10934622]
[1763658956576,0.06931579,87269.0,87238.0,0.10934622]
[1763658956772,0.06931579,87269.0,87223.0,0.07127]
[1763658956974,0.06931579,87269.0,87225.0,0.01375752]
[1763658957171,0.06931579,87269.0,87226.0,0.02057104]
[1763658957522,0.06931579,87269.0,87220.0,0.01133667]
[1763658958720,0.06931579,87269.0,87221.0,0.07127]
[1763658958913,0.06931579,87269.0,87238.0,0.10934622]
[1763658959138,0.00408,87268.0,87230.0,0.01133667]
[1763658959348,0.00408,87267.0,87230.0,0.01133667]
[1763658959555,0.00408,87267.0,87231.0,0.01375657]
[1763658959556,0.00056456,87250.0,87231.0,0.01375657]
[1763658959762,0.00408,87267.0,87232.0,0.00851524]
[1763658959964,0.00408,87267.0,87238.0,0.10934622]
[1763658960178,0.06919,87266.0,87232.0,0.01133667]
[1763658960417,0.05210249,87262.0,87230.0,0.00012579]
[1763658960624,0.01797968,87260.0,87230.0,0.00012579]
[1763658960830,0.1473,87261.0,87230.0,0.00012579]
[1763658960831,0.15138,87261.0,87230.0,0.00012579]
[1763658961014,0.22920569,87258.0,87237.0,0.001]
[1763658961255,0.05210249,87242.0,87187.0,0.01133667]
[1763658961492,0.07918999,87260.0,87187.0,0.01133667]
[1763658961493,0.1214,87289.0,87208.0,0.10934622]
[1763658961719,0.01,87298.0,87222.0,0.05210249]
[1763658961926,0.0004,87310.0,87231.0,0.05210249]
[1763658961927,0.00408,87284.0,87231.0,0.05210249]
[1763658962059,0.00408,87284.0,87231.0,0.01133667]
[1763658962257,0.00408,87284.0,87232.0,0.07206]
[1763658962258,0.06767,87283.0,87232.0,0.07206]
[1763658962470,0.04915542,87276.0,87237.0,0.10934622]
[1763658962670,0.02858,87282.0,87237.0,0.10934622]
[1763658962954,0.323,87280.0,87212.0,0.07206]
[1763658963176,0.323,87278.0,87225.0,0.10934622]
[1763658963399,0.01145934,87265.0,87223.0,0.01133667]
[1763658963625,0.01145934,87265.0,87201.0,0.10934622]
[1763658963626,0.01145908,87267.0,87213.0,0.01133667]
[1763658963849,0.05210249,87252.0,87201.0,0.10934622]
[1763658964139,0.04915542,87235.0,87202.0,0.01206829]
[1763658964354,0.04915542,87224.0,87197.0,0.01133667]
[1763658964571,0.04915542,87224.0,87157.0,0.25220877]
[1763658964572,0.323,87222.0,87169.0,0.01133667]
[1763658964799,0.323,87222.0,87157.0,0.18140622]
[1763658964800,0.01,87201.0,87157.0,0.18140622]
[1763658965026,0.323,87212.0,87137.0,0.08167376]
[1763658965027,0.04915542,87185.0,87137.0,0.08167376]
[1763658965256,0.04915542,87185.0,87125.0,0.15419922]
[1763658965257,0.0335,87158.0,87157.0,0.00041962]
[1763658965473,0.10525,87158.0,87157.0,0.00041962]
[1763658965944,0.05210249,87157.0,87119.0,0.05]
[1763658966170,0.04915542,87143.0,87140.0,0.00032586]
[1763658966406,0.04915542,87143.0,87119.0,0.05]
[1763658966407,0.01,87138.0,87119.0,0.05]
[1763658966648,0.00408,87137.0,87119.0,0.05012591]
[1763658966902,0.00408,87136.0,87119.0,0.05012591]
[1763658967919,0.40067,87155.0,87120.0,0.0137741]
[1763658968166,0.40067,87155.0,87119.0,0.05012591]
[1763658968167,0.04915542,87152.0,87119.0,0.05012591]
[1763658968388,0.323,87151.0,87119.0,0.05012591]
[1763658968596,0.01,87144.0,87119.0,0.05012591]
[1763658968797,0.323,87149.0,87119.0,0.05012591]
[1763658968943,0.06767,87153.0,87119.0,0.05012591]
[1763658969163,0.06767,87153.0,87120.0,0.12312032]
[1763658969395,0.3487313,87190.0,87121.0,0.07206]
[1763658969396,0.06767,87168.0,87121.0,0.07206]
[1763658969613,0.00408,87167.0,87134.0,0.10934622]
[1763658969954,0.06767,87181.0,87135.0,0.08583173]
[1763658970152,0.00408,87166.0,87136.0,0.01377157]
[1763658970364,0.0006383,87166.0,87136.0,0.10934622]
[1763658970567,0.0006383,87166.0,87137.0,0.01377141]
[1763658970707,0.0006383,87166.0,87129.0,0.08339667]
[1763658971042,0.0006383,87166.0,87130.0,0.00833967]
[1763658971497,0.06767,87165.0,87129.0,0.01133667]
[1763658971675,0.0006383,87166.0,87131.0,0.10934622]
[1763658972128,0.0006383,87166.0,87132.0,0.0858322]
[1763658972344,0.00408,87165.0,87132.0,0.07206]
[1763658972543,0.00408,87165.0,87133.0,0.10934622]
[1763658972676,0.00408,87165.0,87134.0,0.01206829]
[1763658972882,0.33393462,87189.0,87135.0,0.01377173]
[1763658973158,0.01799173,87218.0,87141.0,0.323]
[1763658973360,0.04915542,87215.0,87142.0,0.01377062]
[1763658973539,0.01,87204.0,87143.0,0.04301673]
[1763658973738,0.04915542,87188.0,87144.0,0.01377031]
[1763658973891,0.00408,87187.0,87143.0,0.323]
[1763658974097,0.06767,87186.0,87141.0,0.01133667]
[1763658974296,0.06767,87186.0,87130.0,0.01133667]
[1763658974297,0.323,87184.0,87130.0,0.01133667]
[1763658974532,0.04915542,87173.0,87137.0,0.10934622]
[1763658974864,0.04915542,87173.0,87117.0,0.11342622]
[1763658974865,0.323,87159.0,87105.0,0.10774]
[1763658974980,0.04915542,87153.0,87103.0,0.01133667]
[1763658975182,0.04915542,87141.0,87100.0,0.1]
[1763658975410,0.02147591,87139.0,87100.0,0.1]
[1763658975610,0.0114746,87149.0,87100.0,0.1]
[1763658975859,3.0,87150.0,87100.0,0.1]
[1763658975860,0.04915542,87122.0,87100.0,0.1]
[1763658976012,0.00408,87127.0,87101.0,0.0137771]
[1763658976216,0.00408,87127.0,87100.0,0.1]
[1763658976409,0.17055542,87125.0,87100.0,0.1]
[1763658976655,0.08567697,87126.0,87101.0,0.0137771]
[1763658976858,0.08567697,87126.0,87100.0,0.1]
[1763658977096,0.11682542,87125.0,87100.0,0.1]
[1763658977313,0.04915542,87120.0,87100.0,0.1]
[1763658977496,0.04915542,87123.0,87100.0,0.1]
[1763658977702,0.04915542,87125.0,87100.0,0.1]
[1763658977906,0.01800697,87126.0,87100.0,0.1]
[1763658978452,0.04915542,87125.0,87100.0,0.1]
[1763658979338,0.08567697,87126.0,87100.0,0.1]
[1763658979925,0.18567697,87126.0,87100.0,0.1]
[1763658980335,0.06767,87125.0,87100.0,0.1]
[1763658980545,0.11800697,87126.0,87100.0,0.1]
[1763658980748,0.1,87126.0,87101.0,0.0137771]
[1763658980949,0.1,87126.0,87100.0,0.1]
[1763658980950,0.04915542,87122.0,87100.0,0.1]
[1763658981176,0.06767,87121.0,87100.0,0.1]
[1763658981374,0.1,87126.0,87101.0,0.0137771]
[1763658981579,0.1,87126.0,87100.0,0.1]
[1763658981580,0.1,87126.0,87120.0,0.10934622]
[1763658981789,0.1,87126.0,87123.0,0.323]
[1763658982009,0.00408,87147.0,87124.0,0.07060408]
[1763658982183,0.00408,87168.0,87124.0,0.05683061]
[1763658982398,0.06767,87161.0,87124.0,0.05683061]
[1763658982580,0.04915542,87156.0,87125.0,0.10934622]
[1763658982776,0.10934622,87160.0,87123.0,0.01133667]
[1763658983033,0.10934622,87160.0,87106.0,0.323]
[1763658983034,0.04915542,87150.0,87110.0,0.01133667]
[1763658983200,0.06767,87159.0,87120.0,0.12312032]
[1763658983640,0.1473,87167.0,87120.0,0.12312032]
[1763658983641,0.1473,87167.0,87121.0,0.38615]
[1763658983907,0.00408,87168.0,87123.0,0.37510249]
[1763658984061,0.00408,87168.0,87127.0,0.05210249]
[1763658984281,0.00408,87168.0,87132.0,0.05210249]
[1763658984497,0.00408,87168.0,87138.0,0.323]
[1763658984717,0.00408,87168.0,87132.0,0.01133667]
[1763658984934,0.00408,87168.0,87139.0,0.10934622]
[1763658985157,0.00408,87168.0,87153.0,0.10934622]
[1763658985366,0.01799904,87177.0,87154.0,0.05210249]
[1763658985583,0.0335,87223.0,87154.0,0.43825249]
[1763658985584,0.00408,87191.0,87154.0,0.43825249]
[1763658985774,0.00408,87191.0,87159.0,0.05210249]
[1763658985935,0.00408,87191.0,87159.0,0.06343916]
[1763658986134,0.00408,87191.0,87161.0,0.05210249]
[1763658986399,0.00408,87191.0,87173.0,0.10934622]
[1763658986525,0.00408,87191.0,87174.0,0.01093462]
[1763658987596,0.0335,87208.0,87174.0,0.01093462]
[1763658987796,0.00408,87209.0,87175.0,0.06315]
[1763658988450,0.01799135,87204.0,87175.0,0.06315]
[1763658989085,0.00408,87209.0,87187.0,0.10934622]
[1763658989324,0.00408,87209.0,87187.0,0.12068289]
[1763658989536,0.00408,87209.0,87191.0,0.10934622]
[1763658990312,0.00063999,87209.0,87191.0,0.10934622]
[1763658990510,0.00063999,87209.0,87187.0,0.01133667]
[1763658990511,0.06767,87208.0,87187.0,0.01133667]
[1763658990852,0.0680891,87208.0,87187.0,0.01133667]
[1763658991150,0.00687291,87207.0,87177.0,0.01133667]
[1763658991416,0.06767,87206.0,87177.0,0.01133667]
[1763658991955,0.04915542,87205.0,87177.0,0.01133667]
[1763658992159,0.0004191,87208.0,87155.0,0.03268667]
[1763658992160,0.06058,87204.0,87155.0,0.03268667]
[1763658992365,0.323,87196.0,87145.0,0.01133667]
[1763658992675,0.04915542,87190.0,87145.0,0.01206829]
[1763658992898,0.323,87192.0,87145.0,0.01206829]
[1763658993104,0.04915542,87180.0,87135.0,0.02135]
[1763658993276,0.04915542,87180.0,87125.0,0.0038435]
[1763658993277,0.01,87175.0,87125.0,0.0038435]
[1763658993480,0.32708,87179.0,87125.0,0.0038435]
[1763658993481,0.04915542,87168.0,87125.0,0.0038435]
[1763658993683,0.323,87172.0,87125.0,0.0038435]
[1763658993904,0.03151,87126.0,87125.0,0.0038435]
[1763658994066,0.03559,87126.0,87125.0,0.0038435]
[1763658994301,0.03559,87126.0,87100.0,0.1]
[1763658994302,0.01,87117.0,87100.0,0.1]
[1763658994500,0.04915542,87110.0,87100.0,0.10041882]
[1763658994705,0.323,87122.0,87100.0,0.10041882]
[1763658994909,0.04915542,87110.0,87100.0,0.10041882]
[1763658995107,0.04915542,87115.0,87100.0,0.10041882]
[1763658995352,0.323,87116.0,87100.0,0.10041882]
[1763658995570,0.17313622,87117.0,87100.0,0.10041882]
[1763658995775,0.00408,87115.0,87100.0,0.10041882]
[1763658996201,0.06379,87114.0,87100.0,0.10041882]
[1763658996425,0.03151,87126.0,87100.0,0.10041882]
[1763658996719,0.00408,87125.0,87101.0,0.10934622]
[1763658996849,0.00408,87125.0,87100.0,0.10041882]
[1763658997057,0.06379,87124.0,87100.0,0.10041882]
[1763658998072,0.00408,87125.0,87100.0,0.10041882]
[1763658998289,0.00408,87125.0,87101.0,0.10934622]
[1763658998500,0.00408,87125.0,87115.0,0.10934622]
[1763658998926,0.01800394,87167.0,87124.0,0.02429]
[1763658999134,0.00408,87166.0,87140.0,0.10934622]
[1763658999337,0.00408,87166.0,87141.0,0.0247054]
[1763658999535,0.01800007,87157.0,87131.0,0.10934622]
[1763658999766,0.01800007,87157.0,87131.0,0.17439622]
[1763659000348,0.00408,87166.0,87131.0,0.1745222]
[1763659000549,0.00408,87166.0,87132.0,0.12970809]
[1763659000756,0.00408,87166.0,87145.0,0.10934622]
[1763659001102,0.00408,87166.0,87147.0,0.10934622]
[1763659001274,0.00408,87166.0,87147.0,0.05934622]
[1763659001452,0.00408,87166.0,87145.0,0.01133667]
[1763659001655,0.00408,87166.0,87102.0,0.03245729]
[1763659001656,0.04915542,87164.0,87136.0,0.01133667]
[1763659001876,0.06379,87165.0,87131.0,0.00012598]
[1763659002753,0.01,87164.0,87131.0,0.00012598]
[1763659002952,0.06379,87165.0,87132.0,0.10934622]
[1763659003109,0.00408,87166.0,87133.0,0.01377204]
[1763659003316,0.00408,87166.0,87133.0,0.07638667]
[1763659003535,0.06379,87165.0,87133.0,0.01133667]
[1763659004582,0.06379,87165.0,87119.0,0.06505]
[1763659004583,0.13583735,87125.0,87119.0,0.06505]
[1763659004789,0.37943735,87124.0,87119.0,0.06505]
[1763659004994,0.37956298,87124.0,87119.0,0.07638039]
[1763659005170,0.37956298,87124.0,87120.0,0.0137741]
[1763659005372,0.37956298,87124.0,87119.0,0.01133039]
[1763659005620,0.37956298,87124.0,87117.0,0.12092809]
[1763659005881,0.37956298,87124.0,87117.0,0.00025148]
[1763659006461,0.37956298,87124.0,87118.0,0.10934622]
[1763659006596,0.37956298,87124.0,87117.0,0.00025148]
[1763659006800,0.37956298,87124.0,87118.0,0.10934622]
[1763659007043,0.37956298,87124.0,87119.0,0.33677426]
[1763659007254,0.37956298,87124.0,87118.0,0.10934622]
[1763659007960,0.37956298,87124.0,87117.0,0.06530148]
[1763659007961,0.37956298,87124.0,87117.0,0.00025148]
[1763659008161,0.37956298,87124.0,87105.0,0.03352]
[1763659008162,0.2436,87123.0,87105.0,0.03352]
[1763659008375,0.2436,87123.0,87106.0,0.18817253]
[1763659008376,0.24768,87123.0,87106.0,0.18817253]
[1763659008544,0.00012563,87124.0,87120.0,0.10934622]
[1763659008745,0.00012563,87124.0,87121.0,0.323]
[1763659008946,0.12425548,87143.0,87122.0,0.07818422]
[1763659009173,0.12425548,87143.0,87142.0,0.03339]
[1763659009419,0.12425548,87143.0,87123.0,0.37405304]
[1763659009420,0.12425548,87143.0,87133.0,0.03352]
[1763659009624,0.12425548,87143.0,87140.0,0.10934622]
[1763659009829,0.12425548,87143.0,87133.0,0.03352]
[1763659010331,0.12425548,87143.0,87114.0,0.06505]
[1763659010332,0.12081287,87143.0,87114.0,0.06505]
[1763659010540,0.12081287,87143.0,87134.0,0.10934622]
[1763659011090,0.12081287,87143.0,87142.0,0.01429]
[1763659011492,0.12081287,87143.0,87142.0,0.07934]
[1763659012990,0.12081287,87143.0,87142.0,0.01429]
[1763659013195,0.00408,87158.0,87135.0,0.10934622]
[1763659013394,0.00420591,87158.0,87135.0,0.10934622]
[1763659013834,0.00420591,87158.0,87136.0,0.06505]
[1763659014431,0.00420591,87158.0,87106.0,0.10934622]
[1763659014432,0.03151,87137.0,87106.0,0.10934622]
[1763659014662,0.03495383,87137.0,87106.0,0.10934622]
[1763659014842,0.03495383,87137.0,87120.0,0.10934622]
[1763659014843,0.00408,87137.0,87120.0,0.10934622]
[1763659015235,0.00408,87137.0,87121.0,0.03352]
[1763659015469,0.00408,87137.0,87121.0,0.09857]
[1763659015840,0.1473,87136.0,87121.0,0.09857]
[1763659017875,0.1473,87136.0,87121.0,0.03352]
[1763659018080,0.1473,87136.0,87107.0,0.09503682]
[1763659018322,0.1473,87136.0,87107.0,0.38805]
[1763659018523,0.1473,87136.0,87107.0,0.323]
[1763659018734,0.1473,87136.0,87106.0,0.10934622]
[1763659018735,0.06379,87135.0,87088.0,0.06505]
[1763659018939,0.03151,87108.0,87074.0,0.01921]
[1763659019094,0.00408,87107.0,87091.0,0.0215]
[1763659020096,0.00408,87107.0,87100.0,0.10041882]
[1763659020302,0.323,87140.0,87100.0,0.10041882]
[1763659020303,0.08938,87156.0,87101.0,0.18564615]
[1763659020502,0.08771501,87172.0,87101.0,0.18564615]
[1763659020503,0.03151,87165.0,87137.0,0.10934622]
[1763659020709,0.00408,87164.0,87126.0,0.05210249]
[1763659020923,0.00344383,87163.0,87124.0,0.38805]
[1763659021092,0.03151,87171.0,87125.0,0.01377331]
[1763659021289,0.1749,87200.0,87125.0,0.01377331]
[1763659021290,0.00408,87172.0,87131.0,0.323]
[1763659021490,0.00408,87172.0,87132.0,0.06505]
[1763659021693,0.06379,87171.0,87123.0,0.06147154]
[1763659021893,0.06379,87171.0,87111.0,0.08167376]
[1763659021894,0.10934622,87168.0,87124.0,0.10934622]
[1763659022140,0.01,87160.0,87109.0,0.38805]
[1763659022564,0.0649,87167.0,87123.0,0.323]
[1763659022829,0.0649,87167.0,87110.0,0.8926203]
[1763659022830,0.17424622,87166.0,87113.0,0.06147154]
[1763659023036,0.17424622,87166.0,87110.0,0.06258]
[1763659023037,0.04915542,87157.0,87114.0,0.02333978]
[1763659023387,0.0649,87156.0,87111.0,0.323]
[1763659024045,0.0649,87156.0,87106.0,0.323]
[1763659024046,0.04915542,87153.0,87106.0,0.323]
[1763659024194,0.0649,87156.0,87107.0,0.06258]
[1763659024403,0.01800262,87152.0,87118.0,0.10934622]
[1763659024626,0.00408,87151.0,87118.0,0.10934622]
[1763659024843,0.00869826,87150.0,87108.0,0.06147154]
[1763659024996,0.21073622,87151.0,87109.0,0.10934622]
[1763659025203,0.21073622,87151.0,87106.0,0.06147154]
[1763659025204,0.05210249,87146.0,87106.0,0.06147154]
[1763659025415,0.14583622,87151.0,87100.0,0.1]
[1763659025416,0.01,87132.0,87100.0,0.1]
[1763659025635,0.0649,87132.0,87101.0,0.0137771]
[1763659025844,0.0649,87148.0,87102.0,0.10934622]
[1763659026074,0.00408,87147.0,87103.0,0.38447154]
[1763659026275,0.00408,87146.0,87118.0,0.06147154]
[1763659026694,0.00408,87146.0,87119.0,0.06147154]
[1763659026938,0.0649,87145.0,87106.0,0.06147154]
[1763659027142,0.03076,87118.0,87106.0,0.00012563]
[1763659027335,0.00408,87117.0,87106.0,0.00012563]
[1763659027573,0.06898,87117.0,87106.0,0.00012563]
[1763659027733,0.04915542,87112.0,87106.0,0.00012563]
[1763659027934,0.01488954,87112.0,87106.0,0.00012563]
[1763659028140,0.0649,87111.0,87106.0,0.00012563]
[1763659028633,0.08290907,87111.0,87106.0,0.00012563]
[1763659029026,0.0649,87110.0,87106.0,0.00012563]
[1763659029856,0.04915542,87108.0,87106.0,0.00012563]
[1763659030196,0.0649,87110.0,87109.0,0.00025151]
[1763659030419,0.04915542,87110.0,87109.0,0.00025151]
[1763659030640,0.00408,87110.0,87109.0,0.00025151]
[1763659031078,0.01408,87110.0,87109.0,0.00025151]
[1763659031298,0.01408,87110.0,87051.0,0.10934622]
[1763659031299,0.04915542,87104.0,87053.0,0.06147154]
[1763659031525,0.00408,87110.0,87051.0,0.10934622]
[1763659031526,0.01,87101.0,87051.0,0.10934622]
[1763659031757,0.0114825,87089.0,87051.0,0.00012552]
[1763659032030,0.01,87072.0,87051.0,0.00012552]
[1763659032252,0.01,87061.0,87051.0,0.00012552]
[1763659032470,0.37510249,87080.0,87051.0,0.00012552]
[1763659032471,0.01968,87052.0,87051.0,0.00012552]
[1763659032689,0.02376,87052.0,87051.0,0.00012552]
[1763659033411,0.07419,87052.0,87051.0,0.00012552]
[1763659033638,0.02376,87052.0,87051.0,0.00012552]
[1763659033867,0.10934622,87062.0,87051.0,0.00012552]
[1763659033868,0.10934622,87077.0,87051.0,0.00012552]
[1763659034086,0.00408,87076.0,87051.0,0.00012552]
[1763659034556,0.00408,87076.0,87051.0,0.01391054]
[1763659034769,0.00408,87089.0,87075.0,0.03075]
[1763659034988,0.00408,87089.0,87055.0,0.323]
[1763659035211,0.00408,87089.0,87057.0,0.323]
[1763659035432,0.00408,87089.0,87051.0,0.00012552]
[1763659035433,0.05043,87088.0,87051.0,0.00012552]
[1763659035662,0.01036654,87087.0,87051.0,0.00012552]
[1763659035920,0.01968,87052.0,87051.0,0.00012552]
[1763659036152,0.323,87085.0,87051.0,0.00012552]
[1763659036153,0.00408,87056.0,87051.0,0.00012552]
[1763659036593,0.323,87083.0,87051.0,0.00012552]
[1763659036594,0.00408,87062.0,87051.0,0.00012552]
[1763659037532,0.00408,87062.0,87052.0,0.17192622]
[1763659037754,0.00408,87062.0,87051.0,0.00012552]
[1763659037992,0.00408,87062.0,87061.0,0.00150997]
[1763659038703,0.05451,87062.0,87061.0,0.00150997]
[1763659038931,0.05451,87062.0,87051.0,0.00012552]
[1763659039147,0.04915542,87054.0,87051.0,0.00012552]
[1763659039602,0.1473,87062.0,87051.0,0.00012552]
[1763659039907,0.00408,87058.0,87051.0,0.00012552]
[1763659040119,0.00408,87057.0,87051.0,0.00012552]
[1763659040554,0.10215542,87057.0,87051.0,0.00012552]
[1763659040773,0.00408,87057.0,87051.0,0.00012552]
[1763659041013,0.04892,87056.0,87051.0,0.00012552]
[1763659041713,0.00408,87055.0,87051.0,0.00012552]
[1763659041931,0.01148013,87107.0,87051.0,0.00012552]
[1763659041932,0.04892,87082.0,87051.0,0.00012552]
[1763659042160,0.00408,87081.0,87051.0,0.00012552]
[1763659042622,0.02597448,87051.0,87050.0,0.0001]
[1763659042838,0.02597448,87051.0,87050.0,0.00022598]
[1763659042839,0.03005448,87051.0,87050.0,0.00022598]
[1763659043525,0.07897448,87051.0,87050.0,0.00022598]
[1763659043744,0.40987193,87051.0,87050.0,0.00011598]
[1763659043967,0.07897448,87051.0,87050.0,0.00011598]
[1763659044427,0.07897448,87051.0,87010.0,0.0002]
[1763659044428,2.0346,87050.0,87010.0,0.0002]
[1763659044639,0.01805,87031.0,87010.0,0.0002]
[1763659045143,0.01,87023.0,87010.0,0.0002]
[1763659045362,0.04861,87030.0,87010.0,0.0002]
[1763659045363,0.04915542,87011.0,87010.0,0.0002]
[1763659045591,0.04861,87011.0,87010.0,0.0002]
[1763659045810,0.04861,87011.0,86960.0,0.06278]
[1763659045811,3.0,87010.0,86960.0,0.0002]
[1763659046013,0.09776542,87011.0,86960.0,0.0002]
[1763659046014,0.37510249,87006.0,86960.0,0.0002]
[1763659046183,0.04915542,86984.0,86960.0,0.0002]
[1763659046430,0.00408,86983.0,86960.0,0.0002]
[1763659046948,0.02663,87004.0,86960.0,0.06278]
[1763659047153,0.02663,87004.0,86961.0,0.02007728]
[1763659047154,0.10934622,87001.0,86961.0,0.02007728]
[1763659047448,0.00408,87000.0,86961.0,0.02007728]
[1763659047585,0.00408,87000.0,86961.0,0.08265728]
[1763659047996,0.00058,87009.0,86975.0,0.10934622]
[1763659048192,0.00408,87008.0,86976.0,0.02473152]
[1763659048514,0.00058,87009.0,86990.0,0.323]
[1763659048961,0.00058,87009.0,86992.0,0.323]
[1763659049489,0.00058,87009.0,86993.0,0.06258]
[1763659049678,0.00058,87009.0,86994.0,0.01379405]
[1763659049929,0.00058,87009.0,86993.0,0.06258]
[1763659050099,0.00058,87009.0,86995.0,0.01379389]
[1763659050339,0.00408,87011.0,86995.0,0.01379389]
[1763659050487,0.00408,87011.0,86993.0,0.06258]
[1763659050691,0.34897448,87051.0,86994.0,0.12314027]
[1763659051010,0.00408,87030.0,86995.0,0.323]
[1763659051213,0.00408,87030.0,86996.0,0.06636135]
[1763659051594,0.00408,87030.0,86996.0,0.12743135]
[1763659051794,0.00408,87030.0,86996.0,0.06636135]
[1763659051996,0.02597448,87051.0,87010.0,0.10934622]
[1763659052221,0.00408,87050.0,87011.0,0.01093462]
[1763659052481,0.01802529,87045.0,87011.0,0.39478462]
[1763659052649,0.03950655,87051.0,87011.0,0.39478462]
[1763659052650,0.00408,87047.0,87025.0,0.10934622]